fUSD/lending_fUSD_20250123
["ID","MTS","AMOUNT","RATE_DAILY","PERIOD"]
[350130381,1737645069509,-891.18,0.00018904,2]
[350130382,1737645069520,-151.0,0.00018904,2]
[350130383,1737645069531,-819.79,0.00018904,2]
[350130384,1737645069542,-2597.36,0.00018904,2]
[350130385,1737645069553,-151.0,0.00018904,2]
[350130386,1737645069572,-1084.72,0.00018904,2]
[350130387,1737645069583,-151.0,0.00018904,2]
[350130388,1737645069595,-844.37,0.00018904,2]
[350130389,1737645069607,-875.15,0.00018904,2]
[350130390,1737645069618,-151.0,0.00018904,2]
[350130391,1737645069628,-244.452272,0.00018904,2]
[350130392,1737645069639,-560.99,0.00018904,2]
[350130393,1737645069650,-500.0,0.00018904,2]
[350130394,1737645069660,-1539.16,0.00018904,2]
[350130395,1737645069671,-3578.96,0.00018904,2]
[350130396,1737645069682,-961.42,0.00018904,2]
[350130397,1737645069691,-1081.57,0.00018904,2]
[350130398,1737645069702,-1292.3,0.00018904,2]
[350130399,1737645069713,-500.0,0.00018904,2]
[350130400,1737645069723,-1071.81,0.00018904,2]
[350130401,1737645069733,-942.02,0.00018904,2]
[350130402,1737645069743,-663.05,0.00018904,2]
[350130403,1737645069754,-571.59,0.00018904,2]
[350130404,1737645069764,-500.0,0.00018904,2]
[350130405,1737645069775,-860.73,0.00018904,2]
[350130406,1737645069785,-155.887618,0.00018904,2]
[350130407,1737645069795,-500.0,0.00018904,2]
[350130408,1737645069806,-1013.61,0.00018904,2]
[350130409,1737645069820,-2194.45,0.00018904,2]
[350130410,1737645069830,-2177.45,0.00018904,2]
[350130411,1737645069840,-1776.29,0.00018904,2]
[350130412,1737645069849,-500.0,0.00018904,2]
[350130413,1737645069860,-1994.1,0.00018904,2]
[350130414,1737645069870,-568.36,0.00018904,2]
[350130415,1737645069880,-500.0,0.00018904,2]
[350130416,1737645069902,-500.0,0.00018904,2]
[350130417,1737645069913,-2026.27,0.00018904,2]
[350130418,1737645069923,-802.95,0.00018904,2]
[350130419,1737645069933,-268.855723,0.00018904,2]
[350130420,1737645069943,-1138.65,0.00018904,2]
[350130421,1737645069953,-633.78,0.00018904,2]
[350130422,1737645069962,-2021.12,0.00018904,2]
[350130423,1737645069973,-2256.79,0.00018904,2]
[350130424,1737645069983,-926.7,0.00018904,2]
[350130425,1737645069993,-500.0,0.00018904,2]
[350130426,1737645070003,-647.06,0.00018904,2]
[350130427,1737645070014,-500.0,0.00018904,2]
[350130428,1737645070024,-694.41,0.00018904,2]
[350130429,1737645070034,-1999.78,0.00018904,2]
[350130430,1737645070044,-1677.66,0.00018904,2]
[350130431,1737645070054,-1225.64,0.00018904,2]
[350130432,1737645070069,-151.0,0.00018904,2]
[350130433,1737645070079,-620.21,0.00018904,2]
[350130434,1737645070090,-2256.93,0.00018904,2]
[350130435,1737645070100,-500.0,0.00018904,2]
[350130436,1737645070110,-3498.12,0.00018904,2]
[350130437,1737645070123,-1145.96,0.00018904,2]
[350130438,1737645070133,-949.84,0.00018904,2]
[350130439,1737645070143,-1175.82,0.00018904,2]
[350130440,1737645070153,-353.50886373,0.00018904,2]
[350130441,1737645070163,-1697.68,0.00018904,2]
[350130442,1737645070172,-2367.62,0.00018904,2]
[350130443,1737645070182,-1190.26,0.00018904,2]
[350130444,1737645070192,-500.0,0.00018904,2]
[350130445,1737645070202,-1015.53,0.00018904,2]
[350130446,1737645070213,-941.79,0.00018904,2]
[350130447,1737645070222,-151.0,0.00018904,2]
[350130448,1737645070231,-768.15,0.00018904,2]
[350130449,1737645070241,-2329.03,0.00018904,2]
[350130450,1737645070251,-1787.15,0.00018904,2]
[350130451,1737645070261,-151.0,0.00018904,2]
[350130452,1737645070270,-503.37,0.00018904,2]
[350130453,1737645070279,-947.65,0.00018904,2]
[350130454,1737645070288,-846.16,0.00018904,2]
[350130455,1737645070298,-1479.213397,0.00018904,2]
[350130456,1737645070308,-667.14,0.00018904,2]
[350130457,1737645070322,-500.0,0.00018904,2]
[350130458,1737645070332,-641.82,0.00018904,2]
[350130459,1737645070342,-1623.82,0.00018904,2]
[350130460,1737645070352,-1479.213397,0.00018904,2]
[350130461,1737645070361,-867.94,0.00018904,2]
[350130462,1737645070371,-891.94,0.00018904,2]
[350130463,1737645070380,-151.0,0.00018904,2]
[350130464,1737645070390,-500.0,0.00018904,2]
[350130465,1737645070399,-2335.77,0.00018904,2]
[350130466,1737645070409,-1465.77,0.00018904,2]
[350130467,1737645070419,-848.4,0.00018904,2]
[350130468,1737645070428,-500.0,0.00018904,2]
[350130469,1737645070438,-867.64,0.00018904,2]
[350130470,1737645070447,-681.4,0.00018904,2]
[350130471,1737645070596,-500.0,0.00018904,2]
[350130472,1737645070607,-1257.3,0.00018904,2]
[350130473,1737645070617,-914.06,0.00018904,2]
[350130474,1737645070627,-500.0,0.00018904,2]
[350130475,1737645070636,-546.73,0.00018904,2]
[350130476,1737645070646,-592.48,0.00018904,2]
[350130477,1737645070656,-156.109272,0.00018904,2]
[350130478,1737645070666,-1167.46,0.00018904,2]
[350130479,1737645070676,-2691.81,0.00018904,2]
[350130480,1737645070686,-2081.79,0.00018904,2]
[350130481,1737645070695,-961.82,0.00018904,2]
[350130482,1737645070705,-500.0,0.00018904,2]
[350130483,1737645070715,-150.0,0.0001891,2]
[350130484,1737645070724,-183.94305689,0.00018913,2]
[350130485,1737645070734,-150.0,0.00018922,2]
[350130486,1737645070743,-150.0,0.00018922,2]
[350130487,1737645070753,-500.0,0.00018934,2]
[350130488,1737645070762,-183.94305689,0.00018953,2]
[350130489,1737645070772,-150.0,0.00018965,2]
[350130490,1737645070781,-1196.38051738,0.00018969,2]
[350130491,1737645070791,-542.45496981,0.00018973,2]
[350130492,1737645070800,-500.0,0.00018973,2]
[350130493,1737645070810,-500.0,0.00018973,2]
[350130494,1737645070825,-1500.0,0.00018987,8]
[350130495,1737645070835,-4145.7745707,0.00018987,2]
[350130496,1737645070844,-4263.8456384,0.00018987,2]
[350130497,1737645070853,-4381.9167062,0.00018987,2]
[350130498,1737645070863,-4499.9877739,0.00018987,2]
[350130499,1737645070872,-1458.03511,0.00018987,2]
[350130500,1737645070882,-1499.5597418,0.00018987,2]
[350130501,1737645070891,-1541.0843735,0.00018987,2]
[350130502,1737645070900,-1582.6090052,0.00018987,2]
[350130503,1737645070910,-3663.5775717,0.00018987,2]
[350130504,1737645070919,-3755.5750644,0.00018987,2]
[350130505,1737645070929,-3847.5725571,0.00018987,2]
[350130506,1737645070939,-3939.5700498,0.00018987,2]
[350130507,1737645070948,-328.9899103,0.00018987,2]
[350130508,1737645070957,-337.2513013,0.00018987,2]
[350130509,1737645070965,-345.5126923,0.00018987,2]
[350130510,1737645070975,-353.7740834,0.00018987,2]
[350130511,1737645070984,-183.94305689,0.00018992,2]
[350130512,1737645070994,-175.84798705,0.00018999,7]
[350130513,1737645071004,-387.44099597,0.00019,2]
[350130514,1737645071013,-979190.90333116,0.00019,2]
[350130515,1737645071202,-161309.27848837,0.00019,2]
[350130516,1737645071214,-81362.52501472,0.00019,2]
[350130517,1737645071225,-3282.624,0.00019,2]
[350130518,1737645071236,-316110.0,0.00019,2]
[350130519,1737645071247,-2317.09939817,0.00019,2]
[350130520,1737645071258,-280.99900862,0.00019,2]
[350130521,1737645071289,-500.0,0.00016986,2]
[350130522,1737645071300,-745.029595,0.0001784,2]
[350130523,1737645071310,-19442.970405,0.00019,2]
[350130524,1737645071328,-19329.72948446,0.00019,2]
[350130525,1737645071339,-2701.00000018,0.00019,2]
[350130526,1737645071352,-52640.0,0.00019,2]
[350130527,1737645072919,1985.65301358,0.00013781,7]
[350130536,1737645383394,180.94359577,0.00013781,7]
[350130542,1737645638965,196.75,0.00016658,30]
[350130549,1737646109814,374.94630429,7.888e-05,2]
[350130550,1737646124611,6968.692632,8e-05,2]
[350130551,1737646126054,62221.99653719,8e-05,2]
[350130563,1737646231649,-780.53,9.5e-05,2]
[350130564,1737646232017,-404.47108336,9.5e-05,2]
[350130565,1737646232029,-500.0,9.973e-05,2]
[350130566,1737646232041,-152.07613789,9.973e-05,2]
[350130567,1737646232053,-1132.89856211,9.999e-05,2]
[350130568,1737646232065,-168.5249871,0.0001,2]
[350130569,1737646232077,-17062.99191217,0.0001,2]
[350130570,1737646232088,-1020.70568449,0.0001,2]
[350130571,1737646232102,-99540.66004856,0.0001,2]
[350130572,1737646232116,-3567.8180074,0.0001,2]
[350130573,1737646232185,-515800.0,0.0001,2]
[350130574,1737646232199,-53848.4951515,0.0001,2]
[350130575,1737646232245,-472.4999982,0.0001,2]
[350130576,1737646232258,-309.295005,0.0001,2]
[350130577,1737646232271,-384.54,0.0001,2]
[350130578,1737646232285,-6294.30579996,0.0001,2]
[350130579,1737646232347,-417.037148,0.0001,2]
[350130580,1737646232361,-30925.60582015,0.0001,2]
[350130582,1737646232374,-1030.6572,0.0001,2]
[350131055,1737646237584,-17825.60820197,0.0001,2]
[350131056,1737646237596,-178373.88611017,0.0001,2]
[350131057,1737646237608,-458.06616554,0.0001,2]
[350131058,1737646237621,-1433.03309173,0.0001,2]
[350131059,1737646237656,-156987.03179284,0.0001,2]
[350131060,1737646237669,-4001.38890215,0.0001,2]
[350131061,1737646237682,-73593.15937089,0.0001,2]
[350131062,1737646237718,-1251.75,0.0001,2]
[350131063,1737646237745,-22946.5798,0.0001,2]
[350131064,1737646237758,-573.8000002,0.0001,2]
[350131065,1737646237770,-492.986388,0.0001,2]
[350131066,1737646237897,-414.72,0.0001,2]
[350131067,1737646238514,-2032.79288034,0.0001,2]
[350131068,1737646238527,-10372.362,0.0001,2]
[350131069,1737646238538,-6186.6,0.0001,2]
[350131180,1737646239728,-21581.74434679,0.0001,2]
[350131182,1737646239743,-47949.735085,0.0001,2]
[350131184,1737646239755,-1115.06911591,0.0001,2]
[350131188,1737646239767,-2584.0964054,0.0001,2]
[350131191,1737646239779,-941.7699337,0.0001,2]
[350131223,1737646239930,-275.5732017,0.0001,2]
[350131237,1737646240006,-259.4666,0.0001,2]
[350131247,1737646240101,-801.27618261,0.0001,2]
[350131249,1737646240114,-412.56215,0.0001,2]
[350131251,1737646240126,-5088.26953805,0.0001,2]
[350131254,1737646240138,-2268.65106115,0.0001,2]
[350131332,1737646242778,-2525.00320572,0.0001,2]
[350131334,1737646242790,-9837.67838884,0.0001,2]
[350131337,1737646242840,-11.21563405,0.0001,2]
[350131338,1737646242852,-517.26675,0.0001,2]
[350131339,1737646242995,-5213.4134039,0.0001,2]
[350131340,1737646243008,-500.0,0.0001,2]
[350131341,1737646243047,-392.01,0.0001,2]
[350131342,1737646243133,-925.43211547,0.0001,2]
[350131343,1737646243198,-1338679.00273678,0.0001,2]
[350131344,1737646243208,-214.30622341,0.0001,2]
[350131345,1737646243217,-2617.70673388,0.0001,2]
[350131346,1737646243226,-1132.89856209,0.0001,2]
[350131347,1737646243235,-376.43,0.00010137,2]
[350131348,1737646243247,-282.58,0.00010137,2]
[350131349,1737646243256,-3159.5670374,0.00011099,2]
[350131350,1737646243265,-3159.56703739,0.00011099,2]
[350131351,1737646243275,-164.39641276,0.00011099,2]
[350131352,1737646243284,-3159.56703739,0.00011878,2]
[350131353,1737646243293,-3624.0,0.000127,5]
[350131354,1737646243303,-3159.56703739,0.00012867,2]
[350131355,1737646243313,-9134.0,0.00012899,2]
[350131356,1737646243323,-164.39641276,0.00012958,2]
[350131357,1737646243332,-5330.14369859,0.00013,2]
[350131358,1737646243341,-1000.0,0.00013,2]
[350131359,1737646243351,-1085.89,0.0001346,2]
[350131360,1737646243360,-3159.56703739,0.00013856,2]
[350131361,1737646243370,-1000.0,0.00014,2]
[350131362,1737646243380,-181.11,0.00014088,2]
[350131363,1737646243389,-3213.72,0.00014184,2]
[350131364,1737646243399,-1146.82590292,0.000145,2]
[350131365,1737646243408,-1146.82590284,0.000145,2]
[350131366,1737646243418,-1146.82590284,0.000145,2]
[350131367,1737646243428,-1146.82590284,0.000145,2]
[350131368,1737646243438,-1146.82590284,0.000145,2]
[350131369,1737646243450,-1146.82590284,0.000145,2]
[350131370,1737646243460,-1146.82590284,0.000145,2]
[350131371,1737646243470,-1146.82590284,0.000145,2]
[350131372,1737646243479,-1146.82590284,0.000145,2]
[350131373,1737646243490,-1146.82590284,0.000145,2]
[350131374,1737646243501,-1146.82590284,0.00014693,2]
[350131375,1737646243511,-1000.0,0.00014986,2]
[350131376,1737646243521,-250.0,0.00014991,2]
[350131377,1737646243530,-550.0,0.00015,2]
[350131378,1737646243541,-1000.0,0.00015,2]
[350131379,1737646243550,-1146.82590284,0.00015072,2]
[350131380,1737646243560,-958.08,0.00015135,2]
[350131381,1737646243570,-649.3,0.00015435,2]
[350131382,1737646243579,-302.96,0.00015445,3]
[350131383,1737646243588,-1146.82590284,0.00015452,2]
[350131384,1737646243598,-1031.29,0.00015493,2]
[350131385,1737646243608,-415.89,0.00015641,2]
[350131386,1737646243618,-250.0,0.00015642,2]
[350131387,1737646243629,-188.76,0.00015719,2]
[350131389,1737646243638,-1085.89,0.00015724,2]
[350131390,1737646243651,-1146.82590284,0.00015831,2]
[350131391,1737646243663,-155.82,0.00015872,2]
[350131393,1737646243672,-164.39641276,0.00015879,2]
[350131395,1737646243682,-1000.0,0.00016,2]
[350131397,1737646243691,-250.0,0.00016099,2]
[350131399,1737646243702,-443.35,0.00016153,2]
[350131401,1737646243711,-1146.82590284,0.0001621,2]
[350131403,1737646243721,-208094.11223888,0.000163,4]
[350131405,1737646243731,-29907.4793,0.00016338,2]
[350131407,1737646243741,-1612.543,0.00016338,2]
[350131409,1737646243752,-1297.0,0.000164,3]
[350131411,1737646243762,-4983.83562383,0.0001643,2]
[350131413,1737646243772,-181.11,0.00016436,2]
[350131425,1737646243945,-504.08219297,0.00016438,2]
[350131426,1737646243956,-500.0,0.00016438,2]
[350131427,1737646243967,-500.0,0.00016438,2]
[350131428,1737646243978,-500.0,0.00016438,2]
[350131429,1737646243988,-500.0,0.00016438,2]
[350131430,1737646244002,-500.0,0.00016438,2]
[350131431,1737646244011,-500.0,0.00016438,2]
[350131432,1737646244021,-500.0,0.00016438,2]
[350131433,1737646244031,-500.0,0.00016438,2]
[350131434,1737646244042,-500.0,0.00016438,2]
[350131435,1737646244052,-500.0,0.00016438,2]
[350131436,1737646244062,-500.0,0.00016438,2]
[350131437,1737646244071,-500.0,0.00016438,2]
[350131438,1737646244081,-500.0,0.00016438,2]
[350131439,1737646244091,-500.0,0.00016438,2]
[350131440,1737646244101,-500.0,0.00016438,2]
[350131441,1737646244110,-500.0,0.00016438,2]
[350131442,1737646244120,-500.0,0.00016438,2]
[350131443,1737646244130,-500.0,0.00016438,2]
[350131444,1737646244140,-500.0,0.00016438,2]
[350131445,1737646244149,-500.0,0.00016438,2]
[350131446,1737646244159,-500.0,0.00016438,2]
[350131447,1737646244168,-500.0,0.00016438,2]
[350131448,1737646244178,-500.0,0.00016438,2]
[350131449,1737646244187,-500.0,0.00016438,2]
[350131450,1737646244197,-500.0,0.00016438,2]
[350131451,1737646244206,-500.0,0.00016438,2]
[350131452,1737646244216,-500.0,0.00016438,2]
[350131453,1737646244225,-500.0,0.00016438,2]
[350131454,1737646244235,-500.0,0.00016438,2]
[350131455,1737646244248,-500.0,0.00016438,2]
[350131456,1737646244257,-500.0,0.00016438,2]
[350131457,1737646244267,-500.0,0.00016438,2]
[350131458,1737646244276,-786.67,0.00016438,2]
[350131459,1737646244286,-500.0,0.00016438,2]
[350131460,1737646244294,-706.73,0.00016438,2]
[350131461,1737646244304,-592.57,0.00016438,2]
[350131462,1737646244313,-500.0,0.00016438,2]
[350131463,1737646244323,-264.44,0.00016438,2]
[350131464,1737646244332,-500.0,0.00016438,2]
[350131465,1737646244342,-264.11,0.00016438,2]
[350131466,1737646244351,-500.0,0.00016438,2]
[350131467,1737646244360,-500.0,0.00016438,2]
[350131468,1737646244370,-647.41,0.00016438,2]
[350131469,1737646244379,-500.0,0.00016438,2]
[350131470,1737646244389,-1402.88,0.00016438,2]
[350131471,1737646244399,-500.0,0.00016438,2]
[350131472,1737646244410,-500.0,0.00016438,2]
[350131473,1737646244420,-1256.65,0.00016438,2]
[350131474,1737646244429,-751.78,0.00016438,2]
[350131475,1737646244439,-1054.44,0.00016438,2]
[350131476,1737646244449,-727.97,0.00016438,2]
[350131477,1737646244460,-500.0,0.00016438,2]
[350131478,1737646244470,-597.35,0.00016438,2]
[350131479,1737646244479,-592.88,0.00016438,2]
[350131480,1737646244489,-643.5,0.00016438,2]
[350131481,1737646244502,-1491.65,0.00016438,2]
[350131482,1737646244511,-1146.8,0.00016438,2]
[350131483,1737646244521,-629.48,0.00016438,2]
[350131484,1737646244530,-500.0,0.00016438,2]
[350131485,1737646244542,-567.0,0.00016438,2]
[350131486,1737646244552,-500.0,0.00016438,2]
[350131487,1737646244562,-500.0,0.00016438,2]
[350131488,1737646244572,-1456.84,0.00016438,2]
[350131489,1737646244581,-500.0,0.00016438,2]
[350131490,1737646244590,-500.0,0.00016438,2]
[350131491,1737646244600,-500.0,0.00016438,2]
[350131492,1737646244610,-500.0,0.00016438,2]
[350131493,1737646244619,-500.0,0.00016438,2]
[350131494,1737646244629,-500.0,0.00016438,2]
[350131495,1737646244639,-1662.5,0.00016438,2]
[350131496,1737646244649,-1391.84,0.00016438,2]
[350131497,1737646244658,-500.0,0.00016438,2]
[350131498,1737646244668,-500.0,0.00016438,2]
[350131499,1737646244677,-500.0,0.00016438,2]
[350131500,1737646244687,-500.0,0.00016438,2]
[350131501,1737646244696,-1236.01,0.00016438,2]
[350131502,1737646244706,-1012.34,0.00016438,2]
[350131503,1737646244716,-500.0,0.00016438,2]
[350131504,1737646244725,-500.0,0.00016438,2]
[350131505,1737646244735,-502.08679113,0.00016438,2]
[350131506,1737646244746,-500.0,0.00016438,2]
[350131507,1737646244755,-500.0,0.00016438,2]
[350131508,1737646244766,-500.0,0.00016438,2]
[350131509,1737646244776,-500.0,0.00016438,2]
[350131510,1737646244786,-1580.52,0.00016438,2]
[350131511,1737646244795,-500.0,0.00016438,2]
[350131512,1737646244804,-500.0,0.00016438,2]
[350131513,1737646244814,-500.0,0.00016438,2]
[350131514,1737646244825,-500.0,0.00016438,2]
[350131515,1737646244835,-500.0,0.00016438,2]
[350131516,1737646244844,-500.0,0.00016438,2]
[350131517,1737646244854,-572.0789797,0.00016438,2]
[350131518,1737646244864,-500.0,0.00016438,2]
[350131519,1737646244874,-501.55577705,0.00016438,2]
[350131520,1737646244884,-691.99,0.00016438,2]
[350131521,1737646244894,-500.0,0.00016438,2]
[350131522,1737646244904,-500.0,0.00016438,2]
[350131523,1737646244914,-500.0,0.00016438,2]
[350131524,1737646244923,-1529.56798224,0.00016454,2]
[350131525,1737646244933,-1959.3,0.000165,2]
[350131526,1737646244943,-284.93474699,0.0001653,2]
[350131527,1737646244953,-200.0,0.00016548,2]
[350131528,1737646244963,-235.5283116,0.00016549,2]
[350131529,1737646244972,-1627.216944,0.00016567,2]
[350131530,1737646244982,-284.93474699,0.00016569,2]
[350131531,1737646244993,-1627.216944,0.00016573,2]
[350131532,1737646245008,-200.0,0.00016578,2]
[350131533,1737646245019,-1627.216944,0.00016584,2]
[350131534,1737646245029,-1146.82590284,0.0001659,2]
[350131535,1737646245040,-1627.216944,0.00016597,2]
[350131536,1737646245050,-6556.71741825,0.00016597,2]
[350131537,1737646245060,-6556.71741825,0.00016598,2]
[350131538,1737646245071,-284.93474699,0.00016598,2]
[350131539,1737646245081,-235.5283116,0.00016605,2]
[350131540,1737646245091,-235.5283116,0.0001661,2]
[350131541,1737646245101,-284.93474699,0.00016611,2]
[350131542,1737646245111,-6556.71741825,0.00016622,2]
[350131543,1737646245121,-235.5283116,0.00016629,2]
[350131544,1737646245131,-235.5283116,0.00016631,2]
[350131545,1737646245142,-6556.71741825,0.00016637,2]
[350131546,1737646245152,-284.93474699,0.00016639,2]
[350131547,1737646245162,-6556.71741825,0.00016641,2]
[350131548,1737646245172,-1627.216944,0.00016641,2]
[350131549,1737646245182,-500.0,0.0001671,2]
[350131550,1737646245192,-752.9,0.0001671,2]
[350131551,1737646245202,-1478.89,0.0001671,2]
[350131552,1737646245212,-1543.68,0.0001671,2]
[350131553,1737646245222,-500.0,0.0001671,2]
[350131554,1737646245232,-2542.47,0.0001671,2]
[350131555,1737646245243,-640.83,0.0001671,2]
[350131557,1737646245256,-500.0,0.0001671,2]
[350131558,1737646245266,-1013.97,0.0001671,2]
[350131559,1737646245275,-655.12,0.0001671,2]
[350131560,1737646245286,-583.76,0.0001671,2]
[350131561,1737646245295,-500.0,0.0001671,2]
[350131563,1737646245305,-1510.7,0.0001671,2]
[350131564,1737646245314,-500.0,0.0001671,2]
[350131565,1737646245323,-2657.0,0.0001671,2]
[350131566,1737646245332,-500.0,0.00016711,2]
[350131567,1737646245341,-500.0,0.00016711,2]
[350131569,1737646245351,-500.0,0.00016711,2]
[350131571,1737646245360,-500.0,0.00016711,2]
[350131573,1737646245369,-500.0,0.00016711,2]
[350131574,1737646245378,-500.0,0.00016711,2]
[350131575,1737646245387,-500.0,0.00016711,2]
[350131577,1737646245396,-500.0,0.00016711,2]
[350131579,1737646245406,-419.50849611,0.00016711,2]
[350131581,1737646245416,-500.0,0.00016711,2]
[350131583,1737646245425,-525.72343403,0.00016711,2]
[350131585,1737646245435,-500.0,0.00016711,2]
[350131586,1737646245450,-500.0,0.00016711,2]
[350131587,1737646245459,-500.0,0.00016711,2]
[350131589,1737646245478,-500.0,0.00016711,2]
[350131591,1737646245490,-500.0,0.00016711,2]
[350131592,1737646245502,-500.0,0.00016711,2]
[350131593,1737646245512,-161.30787903,0.00016711,2]
[350131594,1737646245523,-500.0,0.00016711,2]
[350131595,1737646245533,-469.00603,0.00016711,2]
[350131596,1737646245542,-500.0,0.00016711,2]
[350131597,1737646245552,-500.0,0.00016711,2]
[350131598,1737646245561,-160.205379,0.00016711,2]
[350131599,1737646245571,-162.043691,0.00016711,2]
[350131600,1737646245581,-500.0,0.00016711,2]
[350131601,1737646245591,-500.0,0.00016711,2]
[350131602,1737646245600,-500.0,0.00016711,2]
[350131603,1737646245610,-500.0,0.00016711,2]
[350131604,1737646245620,-500.0,0.00016711,2]
[350131605,1737646245630,-500.0,0.00016711,2]
[350131606,1737646245641,-500.0,0.00016711,2]
[350131607,1737646245651,-500.0,0.00016711,2]
[350131608,1737646245660,-500.0,0.00016711,2]
[350131609,1737646245669,-500.0,0.00016711,2]
[350131610,1737646245679,-500.0,0.00016711,2]
[350131611,1737646245688,-500.0,0.00016711,2]
[350131612,1737646245698,-500.0,0.00016711,2]
[350131613,1737646245709,-500.0,0.00016711,2]
[350131614,1737646245720,-500.0,0.00016711,2]
[350131615,1737646245730,-500.0,0.00016711,2]
[350131616,1737646245740,-500.0,0.00016711,2]
[350131617,1737646245753,-504.47477566,0.00016711,2]
[350131618,1737646245763,-500.0,0.00016711,2]
[350131619,1737646245774,-500.0,0.00016711,2]
[350131620,1737646245783,-500.0,0.00016711,2]
[350131621,1737646245794,-500.0,0.00016711,2]
[350131622,1737646245804,-500.0,0.00016711,2]
[350131623,1737646245814,-514.84,0.00016711,2]
[350131624,1737646245825,-551.63,0.00016711,2]
[350131625,1737646245834,-500.0,0.00016711,2]
[350131626,1737646245844,-500.0,0.00016711,2]
[350131627,1737646245855,-562.05,0.00016711,2]
[350131628,1737646245865,-531.51,0.00016711,2]
[350131629,1737646245875,-500.0,0.00016711,2]
[350131630,1737646245885,-500.0,0.00016711,2]
[350131631,1737646245896,-500.0,0.00016711,2]
[350131632,1737646245906,-500.0,0.00016711,2]
[350131633,1737646245916,-500.0,0.00016711,2]
[350131634,1737646245926,-824.58,0.00016711,2]
[350131635,1737646245937,-500.0,0.00016711,2]
[350131636,1737646245947,-500.0,0.00016711,2]
[350131637,1737646245957,-500.0,0.00016711,2]
[350131638,1737646245967,-1134.75,0.00016711,2]
[350131639,1737646245977,-503.22161499,0.00016711,2]
[350131640,1737646245988,-526.35,0.00016711,2]
[350131641,1737646246003,-500.0,0.00016711,2]
[350131642,1737646246013,-500.0,0.00016711,2]
[350131643,1737646246024,-800.49,0.00016711,2]
[350131644,1737646246035,-517.44,0.00016711,2]
[350131645,1737646246047,-500.0,0.00016711,2]
[350131646,1737646246057,-500.0,0.00016711,2]
[350131647,1737646246067,-500.0,0.00016711,2]
[350131648,1737646246078,-500.0,0.00016711,2]
[350131649,1737646246088,-1190.29,0.00016711,2]
[350131650,1737646246098,-581.61,0.00016711,2]
[350131651,1737646246108,-500.0,0.00016711,2]
[350131652,1737646246118,-500.0,0.00016711,2]
[350131653,1737646246128,-775.23,0.00016711,2]
[350131654,1737646246138,-704.27,0.00016711,2]
[350131655,1737646246148,-1759.34,0.00016711,2]
[350131656,1737646246158,-500.0,0.00016711,2]
[350131657,1737646246168,-712.5,0.00016711,2]
[350131658,1737646246179,-500.0,0.00016711,2]
[350131659,1737646246190,-648.67,0.00016711,2]
[350131660,1737646246199,-500.0,0.00016711,2]
[350131661,1737646246210,-935.25,0.00016711,2]
[350131662,1737646246220,-500.0,0.00016711,2]
[350131663,1737646246231,-500.0,0.00016711,2]
[350131664,1737646246241,-500.0,0.00016711,2]
[350131665,1737646246255,-500.0,0.00016711,2]
[350131666,1737646246266,-500.0,0.00016711,2]
[350131667,1737646246276,-596.3,0.00016711,2]
[350131668,1737646246286,-1156.85,0.00016711,2]
[350131669,1737646246296,-500.0,0.00016711,2]
[350131670,1737646246308,-644.57,0.00016711,2]
[350131671,1737646246317,-500.0,0.00016711,2]
[350131672,1737646246328,-500.0,0.00016711,2]